fUST/lending_fUST_20240615
["ID","MTS","AMOUNT","RATE_DAILY","PERIOD"]
[329495643,1718394650925,-500.0,0.00016438,2]
[329495644,1718394650941,-501.82290152,0.00016438,2]
[329495645,1718394650977,-500.0,0.00016438,2]
[329495646,1718394651004,-500.0,0.00016438,2]
[329495647,1718394651015,-595.65055958,0.00016438,2]
[329495648,1718394651028,-500.0,0.00016438,2]
[329495649,1718394651040,-500.0,0.00016438,2]
[329495651,1718394651057,-500.0,0.00016438,2]
[329495652,1718394651070,-561.90091109,0.00016438,2]
[329495654,1718394651087,-500.0,0.00016438,2]
[329495656,1718394651102,-500.0,0.00016438,2]
[329495658,1718394651114,-500.0,0.00016438,2]
[329495660,1718394651125,-500.0,0.00016438,2]
[329495662,1718394651137,-500.0,0.00016438,2]
[329495674,1718394651316,-500.0,0.00016438,2]
[329495676,1718394651331,-500.0,0.00016438,2]
[329495678,1718394651350,-500.0,0.00016438,2]
[329495679,1718394651361,-500.0,0.00016438,2]
[329495682,1718394651400,-500.0,0.00016438,2]
[329495684,1718394651417,-500.0,0.00016438,2]
[329495685,1718394651441,-500.0,0.00016438,2]
[329495688,1718394651462,-500.0,0.00016438,2]
[329495691,1718394651473,-500.0,0.00016438,2]
[329495693,1718394651497,-500.0,0.00016438,2]
[329495695,1718394651517,-500.0,0.00016438,2]
[329495697,1718394651538,-500.0,0.00016438,2]
[329495698,1718394651555,-592.56,0.00016438,2]
[329495700,1718394651567,-500.0,0.00016438,2]
[329495702,1718394651579,-500.0,0.00016438,2]
[329495704,1718394651613,-534.7417435,0.00016438,2]
[329495705,1718394651626,-500.0,0.00016438,2]
[329495706,1718394651637,-500.0,0.00016438,2]
[329495707,1718394651665,-500.0,0.00016438,2]
[329495708,1718394651689,-500.0,0.00016438,2]
[329495709,1718394651702,-500.0,0.00016438,2]
[329495710,1718394651714,-500.0,0.00016438,2]
[329495711,1718394651737,-500.0,0.00016438,2]
[329495712,1718394651753,-500.0,0.00016438,2]
[329495713,1718394651764,-504.21619188,0.00016438,2]
[329495714,1718394651776,-500.0,0.00016438,2]
[329495715,1718394651789,-500.0,0.00016438,2]
[329495716,1718394651802,-500.0,0.00016438,2]
[329495717,1718394651828,-500.0,0.00016438,2]
[329495718,1718394651879,-500.0,0.00016438,2]
[329495719,1718394651892,-500.0,0.00016438,2]
[329495720,1718394651903,-500.0,0.00016438,2]
[329495721,1718394651914,-500.0,0.00016438,2]
[329495722,1718394651927,-17283.59,0.00016438,2]
[329495723,1718394651952,-500.0,0.00016438,2]
[329495724,1718394651963,-500.0,0.00016438,2]
[329495725,1718394651976,-562.25,0.00016438,2]
[329495726,1718394652000,-996.17,0.00016438,2]
[329495727,1718394652011,-500.0,0.00016438,2]
[329495728,1718394652035,-500.0,0.00016438,2]
[329495729,1718394652052,-500.0,0.00016438,2]
[329495730,1718394652065,-614.15,0.00016438,2]
[329495731,1718394652093,-713.6,0.00016438,2]
[329495732,1718394652104,-500.0,0.00016438,2]
[329495733,1718394652126,-500.0,0.00016438,2]
[329495734,1718394652137,-1649.0,0.00016438,2]
[329495735,1718394652149,-534.09,0.00016438,2]
[329495736,1718394652160,-500.0,0.00016438,2]
[329495737,1718394652173,-500.0,0.00016438,2]
[329495738,1718394652191,-500.0,0.00016438,2]
[329495739,1718394652216,-2125.12,0.00016438,2]
[329495740,1718394652227,-503.83120065,0.00016438,2]
[329495741,1718394652255,-500.0,0.00016438,2]
[329495742,1718394652268,-500.0,0.00016438,2]
[329495743,1718394652282,-500.0,0.00016438,2]
[329495744,1718394652294,-500.0,0.00016438,2]
[329495745,1718394652308,-500.0,0.00016438,2]
[329495746,1718394652354,-500.0,0.00016438,2]
[329495747,1718394652391,-500.0,0.00016438,2]
[329495748,1718394652401,-500.0,0.00016438,2]
[329495749,1718394652412,-500.0,0.00016438,2]
[329495750,1718394652422,-441.98578695,0.00016438,2]
[329495751,1718394652448,-5899.29,0.00016438,2]
[329495752,1718394652459,-552.76721272,0.00016438,2]
[329495753,1718394652470,-500.0,0.00016438,2]
[329495754,1718394652482,-632.25604265,0.00016438,2]
[329495755,1718394652492,-500.0,0.00016438,2]
[329495756,1718394652504,-500.0,0.00016438,2]
[329495757,1718394652518,-500.0,0.00016438,2]
[329495758,1718394652542,-500.0,0.00016438,2]
[329495759,1718394652555,-500.0,0.00016438,2]
[329495760,1718394652572,-500.0,0.00016438,2]
[329495761,1718394652582,-565.75,0.00016438,2]
[329495762,1718394652603,-500.0,0.00016438,2]
[329495763,1718394652626,-500.0,0.00016438,2]
[329495764,1718394652639,-639.53063006,0.00016438,2]
[329495765,1718394652653,-414.21365519,0.00016438,2]
[329495766,1718394652724,-2316.66634481,0.00016438,2]
[329495767,1718394652775,-500.0,0.00016438,2]
[329495768,1718394652808,-500.0,0.00016438,2]
[329495769,1718394652822,-500.0,0.00016438,2]
[329495770,1718394652845,-503.06307391,0.00016438,2]
[329495771,1718394652863,-500.0,0.00016438,2]
[329495772,1718394652896,-500.0,0.00016438,2]
[329495773,1718394652929,-500.0,0.00016438,2]
[329495774,1718394652941,-500.0,0.00016438,2]
[329495775,1718394652954,-697.21,0.00016438,2]
[329495776,1718394652967,-500.0,0.00016438,2]
[329495777,1718394652980,-500.0,0.00016438,2]
[329495778,1718394652994,-500.0,0.00016438,2]
[329495779,1718394653008,-500.0,0.00016438,2]
[329495780,1718394653019,-500.0,0.00016438,2]
[329495781,1718394653051,-583.68,0.00016438,2]
[329495782,1718394653087,-509.10602516,0.00016438,2]
[329495783,1718394653114,-500.0,0.00016438,2]
[329495784,1718394653133,-500.0,0.00016438,2]
[329495785,1718394653146,-500.0,0.00016438,2]
[329495786,1718394653189,-500.0,0.00016438,2]
[329495787,1718394653232,-500.0,0.00016438,2]
[329495788,1718394653264,-1293.98,0.00016438,2]
[329495789,1718394653340,-500.0,0.00016438,2]
[329495790,1718394653390,-502.93715686,0.00016438,2]
[329495791,1718394653409,-1011.61,0.00016438,2]
[329495792,1718394653423,-4511.85,0.00016438,2]
[329495793,1718394653438,-500.0,0.00016438,2]
[329495794,1718394653469,-501.76953284,0.00016438,2]
[329495795,1718394653481,-500.0,0.00016438,2]
[329495796,1718394653492,-500.0,0.00016438,2]
[329495797,1718394653517,-500.0,0.00016438,2]
[329495798,1718394653530,-500.0,0.00016438,2]
[329495799,1718394653543,-500.0,0.00016438,2]
[329495800,1718394653557,-500.0,0.00016438,2]
[329495801,1718394653581,-500.0,0.00016438,2]
[329495802,1718394653598,-500.0,0.00016438,2]
[329495803,1718394653656,-500.0,0.00016438,2]
[329495804,1718394653692,-298.09295366,0.00016438,2]
[329495805,1718394653733,-500.0,0.00016438,2]
[329495806,1718394653766,-1.59290932,0.00016438,2]
[329495807,1718394653836,-498.40709068,0.00016438,2]
[329495808,1718394653854,-127.04007477,0.00016438,2]
[329495809,1718394653889,-349.99996,0.00016438,2]
[329495810,1718394654409,-22.95996523,0.00016438,2]
[329495811,1718394654453,-500.0,0.00016438,2]
[329495812,1718394654507,-351.92546362,0.00016438,2]
[329495813,1718394654544,-7338.62,0.00016438,2]
[329495814,1718394654651,-500.0,0.00016438,2]
[329495815,1718394654667,-500.0,0.00016438,2]
[329495816,1718394654682,-500.0,0.00016438,2]
[329495817,1718394654696,-500.0,0.00016438,2]
[329495818,1718394654732,-500.0,0.00016438,2]
[329495819,1718394654744,-1630.91,0.00016438,2]
[329495820,1718394654767,-500.0,0.00016438,2]
[329495821,1718394654799,-522.25239558,0.00016438,2]
[329495822,1718394654846,-500.0,0.00016438,2]
[329495823,1718394654858,-500.0,0.00016438,2]
[329495824,1718394654878,-500.0,0.00016438,2]
[329495825,1718394654893,-155.00310006,0.000165,2]
[329495826,1718394654906,-500.0,0.0001671,2]
[329495827,1718394654917,-500.0,0.00016711,2]
[329495828,1718394654934,-500.0,0.00016711,2]
[329495829,1718394654951,-500.0,0.00016711,2]
[329495830,1718394654984,-4683.99454788,0.00016712,15]
[329495831,1718394654999,-500.0,0.00016712,2]
[329495832,1718394655021,-500.0,0.00016712,2]
[329495833,1718394655037,-500.0,0.00016712,2]
[329495834,1718394655048,-500.0,0.00016712,2]
[329495835,1718394655114,-500.0,0.00016712,2]
[329495836,1718394655133,-525.27,0.00016712,2]
[329495837,1718394655145,-500.0,0.00016712,2]
[329495838,1718394655157,-518.94786951,0.00016712,4]
[329495839,1718394655172,-500.0,0.00016712,2]
[329495840,1718394655187,-500.0,0.00016712,2]
[329495841,1718394655216,-500.0,0.00016712,2]
[329495842,1718394655230,-1.86587996,0.00016712,2]
[329495843,1718394655365,-331.6042179,0.00016712,2]
[329495844,1718394655384,-166.52990214,0.00016712,2]
[329495845,1718394655399,-500.0,0.00016712,2]
[329495846,1718394655419,-500.0,0.00016712,2]
[329495847,1718394655437,-500.0,0.00016712,2]
[329495848,1718394655450,-500.0,0.00016712,2]
[329495849,1718394655471,-500.0,0.00016712,2]
[329495850,1718394655484,-500.0,0.00016712,2]
[329495851,1718394655494,-231.87009786,0.00016712,2]
[329495852,1718394655673,-360.68990214,0.00016712,2]
[329495853,1718394655704,-500.0,0.00016712,2]
[329495854,1718394655721,-180.30907786,0.00016712,2]
[329495855,1718394655737,-319.69092214,0.00016712,2]
[329495856,1718394655752,-338.04,0.00016712,2]
[329495857,1718394655765,-500.0,0.00016712,2]
[329495858,1718394655786,-500.0,0.00016712,2]
[329495859,1718394655807,-562.25,0.00016712,2]
[329495860,1718394655824,-996.17,0.00016712,2]
[329495861,1718394655898,-500.0,0.00016712,2]
[329495862,1718394655923,-614.15,0.00016712,2]
[329495863,1718394655952,-713.6,0.00016712,2]
[329495864,1718394655994,-500.0,0.00016712,2]
[329495865,1718394656008,-1649.0,0.00016712,2]
[329495866,1718394656019,-534.09,0.00016712,2]
[329495867,1718394656034,-500.0,0.00016712,2]
[329495868,1718394656047,-2125.12,0.00016712,2]
[329495869,1718394656067,-500.0,0.00016712,2]
[329495870,1718394656083,-222.71144971,0.00016712,2]
[329495871,1718394656105,-500.0,0.00016712,2]
[329495872,1718394656115,-5899.29,0.00016712,2]
[329495873,1718394656132,-500.0,0.00016712,2]
[329495874,1718394656145,-500.0,0.00016712,2]
[329495875,1718394656159,-565.75,0.00016712,2]
[329495876,1718394656179,-2730.88,0.00016712,2]
[329495877,1718394656199,-500.0,0.00016712,2]
[329495878,1718394656228,-500.0,0.00016712,2]
[329495879,1718394656242,-381.56976852,0.00016712,2]
[329495880,1718394656267,-697.21,0.00016712,2]
[329495881,1718394656290,-500.0,0.00016712,2]
[329495882,1718394656319,-299.09560693,0.00016712,2]
[329495883,1718394656360,-583.68,0.00016712,2]
[329495884,1718394656384,-500.0,0.00016712,2]
[329495885,1718394656448,-500.0,0.00016712,2]
[329495886,1718394656460,-1293.98,0.00016712,2]
[329495887,1718394656471,-500.0,0.00016712,2]
[329495888,1718394656508,-1011.61,0.00016712,2]
[329495889,1718394656519,-4511.85,0.00016712,2]
[329495890,1718394656529,-500.0,0.00016712,2]
[329495891,1718394656542,-500.0,0.00016712,2]
[329495892,1718394656554,-500.0,0.00016712,2]
[329495893,1718394656565,-7338.62,0.00016712,2]
[329495894,1718394656576,-552.32294094,0.00016712,2]
[329495895,1718394656592,-500.0,0.00016712,2]
[329495896,1718394656605,-1630.91,0.00016712,2]
[329495897,1718394656627,-500.0,0.00016712,2]
[329495898,1718394656640,-153.0,0.00016877,2]
[329495899,1718394656654,-500.0,0.00016985,2]
[329495900,1718394656675,-500.0,0.00016986,2]
[329495901,1718394656689,-500.0,0.00016986,2]
[329495902,1718394656701,-500.0,0.00016986,2]
[329495903,1718394656727,-525.27,0.00016986,2]
[329495904,1718394656757,-500.0,0.00016986,2]
[329495905,1718394656770,-500.0,0.00016986,2]
[329495906,1718394656809,-500.0,0.00016986,2]
[329495907,1718394656820,-500.0,0.00016986,2]
[329495908,1718394656833,-500.0,0.00016986,2]
[329495909,1718394656846,-500.0,0.00016986,2]
[329495910,1718394656860,-500.0,0.00016986,2]
[329495911,1718394656903,-500.0,0.00016986,2]
[329495912,1718394656922,-592.56,0.00016986,2]
[329495913,1718394656934,-500.0,0.00016986,2]
[329495914,1718394656962,-500.0,0.00016986,2]
[329495915,1718394656976,-234.42,0.00016986,2]
[329495916,1718394657001,-562.25,0.00016986,2]
[329495917,1718394657017,-996.17,0.00016986,2]
[329495918,1718394657047,-614.15,0.00016986,2]
[329495919,1718394657057,-713.6,0.00016986,2]
[329495920,1718394657070,-500.0,0.00016986,2]
[329495921,1718394657089,-1649.0,0.00016986,2]
[329495922,1718394657110,-534.09,0.00016986,2]
[329495923,1718394657129,-500.0,0.00016986,2]
[329495924,1718394657173,-2125.12,0.00016986,2]
[329495925,1718394657204,-500.0,0.00016986,2]
[329495926,1718394657235,-500.0,0.00016986,2]
[329495927,1718394657365,-5899.29,0.00016986,2]
[329495928,1718394657376,-500.0,0.00016986,2]
[329495929,1718394657397,-500.0,0.00016986,2]
[329495930,1718394657418,-565.75,0.00016986,2]
[329495931,1718394657445,-2730.88,0.00016986,2]
[329495932,1718394657456,-540.86,0.00016986,2]
[329495933,1718394657467,-468.58282589,0.00016986,2]
[329495934,1718394657512,-697.21,0.00016986,2]
[329495935,1718394657529,-500.0,0.00016986,2]
[329495936,1718394657593,-583.68,0.00016986,2]
[329495937,1718394657613,-500.0,0.00016986,2]
[329495938,1718394657628,-279.62,0.00016986,2]
[329495939,1718394657639,-1293.98,0.00016986,2]
[329495940,1718394657650,-500.0,0.00016986,2]
[329495941,1718394657662,-4511.85,0.00016986,2]
[329495942,1718394657679,-1011.61,0.00016986,2]
[329495943,1718394657691,-500.0,0.00016986,2]
[329495944,1718394657712,-500.0,0.00016986,2]
[329495945,1718394657723,-7338.62,0.00016986,2]
[329495946,1718394657753,-500.0,0.00016986,2]
[329495947,1718394657768,-1630.91,0.00016986,2]
[329495948,1718394657812,-500.0,0.00016986,2]
[329495949,1718394657837,-500.0,0.00016999,2]
[329495950,1718394657868,-922.43444293,0.00017,2]
[329495951,1718394657881,-16659.2437971,0.00017,2]
[329495952,1718394657901,-500.0,0.00017259,2]
[329495953,1718394657933,-500.0,0.0001726,2]
[329495954,1718394658005,-500.0,0.0001726,2]
[329495955,1718394658022,-525.27,0.0001726,2]
[329495956,1718394658037,-440.39757939,0.0001726,2]
[329495957,1718394658124,-59.60242061,0.0001726,2]
[329495958,1718394658144,-500.0,0.0001726,2]
[329495959,1718394658162,-500.0,0.0001726,2]
[329495960,1718394658178,-500.0,0.0001726,2]
[329495961,1718394658190,-500.0,0.0001726,2]
[329495962,1718394658228,-500.0,0.0001726,2]
[329495963,1718394658250,-500.0,0.0001726,2]
[329495964,1718394658284,-500.0,0.0001726,2]
[329495965,1718394658313,-592.56,0.0001726,2]
[329495966,1718394658330,-500.0,0.0001726,2]
[329495967,1718394658346,-500.0,0.0001726,2]
[329495968,1718394658360,-562.25,0.0001726,2]
[329495969,1718394658371,-996.17,0.0001726,2]
[329495970,1718394658389,-614.15,0.0001726,2]
[329495971,1718394658428,-12.05890663,0.0001726,2]
[329495973,1718394910192,151.00151002,0.00019277,30]
[329495974,1718394910289,151.00151002,0.00018891,120]
[329495976,1718395420117,2000.0,0.00025192,90]
[329495977,1718395431572,2000.0,0.00025192,90]
[329495978,1718395483912,2000.0,0.00025,60]
[329495979,1718395495512,151.00151002,0.00019091,30]
[329495980,1718395495593,151.00151002,0.00018709,120]
[329495981,1718395497749,2000.0,0.00025,60]
[329495982,1718395535080,2000.0,0.00025,60]
[329495983,1718395590373,2000.0,0.00025,60]
[329495985,1718395610904,2000.0,0.00025,60]
[329495986,1718395646018,1500.0,0.00025,60]
[329495999,1718395787647,-552.20397307,0.00015,2]
[329496019,1718395834509,-302.0,0.000153,2]
[329496023,1718395834713,-1104.2656722,0.000153,2]
[329496024,1718395834726,-1000.0,0.00016,3]
[329496026,1718395834797,-164.651568,0.00016164,2]
[329496028,1718395834811,-631.83112825,0.00016338,2]
[329496030,1718395834823,-164.73004207,0.00016436,2]
[329496032,1718395834856,-300.0,0.00016437,2]
[329496034,1718395834892,-300.0,0.00016437,2]
[329496035,1718395834905,-500.0,0.00016438,2]
[329496037,1718395834917,-500.0,0.00016438,2]
[329496038,1718395834958,-500.0,0.00016438,2]
[329496039,1718395834975,-500.0,0.00016438,2]
[329496040,1718395835004,-500.0,0.00016438,2]
[329496041,1718395835016,-402.14291596,0.00016438,2]
[329496042,1718395835027,-500.0,0.00016438,2]
[329496043,1718395835060,-500.0,0.00016438,2]
[329496044,1718395835075,-500.0,0.00016438,2]
[329496045,1718395835092,-513.79,0.00016438,2]
[329496046,1718395835107,-500.0,0.00016438,2]
[329496047,1718395835160,-500.0,0.00016438,2]
[329496048,1718395835171,-500.0,0.00016438,2]
[329496049,1718395835182,-500.0,0.00016438,2]
[329496050,1718395835198,-500.0,0.00016438,2]
[329496051,1718395835231,-500.0,0.00016438,2]
[329496052,1718395835243,-500.0,0.00016438,2]
[329496053,1718395835254,-500.0,0.00016438,2]
[329496054,1718395835268,-500.0,0.00016438,2]
[329496055,1718395835291,-500.0,0.00016438,2]
[329496056,1718395835305,-530.07,0.00016438,2]
[329496057,1718395835336,-500.0,0.00016438,2]
[329496058,1718395835520,-500.0,0.00016438,2]
[329496059,1718395835547,-500.0,0.00016438,2]
[329496060,1718395835577,-454.08217856,0.00016438,2]
[329496061,1718395835588,-500.0,0.00016438,2]
[329496062,1718395835599,-500.0,0.00016438,2]
[329496063,1718395835610,-560.08,0.00016438,2]
[329496064,1718395835625,-16748.48,0.00016438,2]
[329496065,1718395835639,-1634.27,0.00016438,2]
[329496066,1718395835650,-513.75,0.00016438,2]
[329496067,1718395835664,-500.0,0.00016438,2]
[329496068,1718395835704,-1513.6,0.00016438,2]
[329496069,1718395835729,-1960.17,0.00016438,2]
[329496070,1718395835744,-517.88,0.00016438,2]
[329496071,1718395835755,-693.17,0.00016438,2]
[329496072,1718395835778,-500.0,0.00016438,2]
[329496073,1718395835791,-500.0,0.00016438,2]
[329496074,1718395835804,-500.0,0.00016438,2]
[329496075,1718395835819,-500.0,0.00016438,2]
[329496076,1718395835835,-500.0,0.00016438,2]
[329496077,1718395835851,-5539.66,0.00016438,2]
[329496078,1718395835875,-500.0,0.00016438,2]
[329496079,1718395835890,-500.0,0.00016438,2]
[329496080,1718395835903,-817.46,0.00016438,2]
[329496081,1718395835920,-500.0,0.00016438,2]
[329496082,1718395835934,-500.0,0.00016438,2]
[329496083,1718395835953,-631.07510891,0.00016438,2]
[329496084,1718395835963,-2482.61,0.00016438,2]
[329496085,1718395835976,-788.38,0.00016438,2]
[329496086,1718395835988,-557.52,0.00016438,2]
[329496087,1718395836000,-500.0,0.00016438,2]
[329496088,1718395836011,-147.57268973,0.00016438,2]
[329496148,1718395840486,-352.42731027,0.00016438,2]
[329496149,1718395840530,-939.78,0.00016438,2]
[329496150,1718395840561,-500.0,0.00016438,2]
[329496151,1718395840601,-55.43734157,0.00016438,2]
[329496152,1718395840618,-444.56265843,0.00016438,2]
[329496153,1718395840630,-500.0,0.00016438,2]
[329496154,1718395840644,-931.49,0.00016438,2]
[329496155,1718395840669,-4145.0,0.00016438,2]
[329496156,1718395840694,-500.0,0.00016438,2]
[329496157,1718395840717,-500.0,0.00016438,2]
[329496159,1718395840773,-500.0,0.00016438,2]
[329496160,1718395840805,-1524.26,0.00016438,2]
[329496162,1718395840817,-6649.75,0.00016438,2]
[329496163,1718395840836,-500.0,0.00016438,2]
[329496164,1718395840862,-263.3785513,0.00016641,2]
[329496165,1718395840877,-500.0,0.00016711,2]
[329496166,1718395840895,-533.18,0.00016712,2]
[329496167,1718395840917,-500.0,0.00016712,2]
[329496168,1718395840930,-500.0,0.00016712,2]
[329496169,1718395840942,-500.0,0.00016712,2]
[329496170,1718395840953,-500.0,0.00016712,2]
[329496171,1718395840964,-500.0,0.00016712,2]
[329496172,1718395840974,-513.79,0.00016712,2]
[329496173,1718395841017,-500.0,0.00016712,2]
[329496174,1718395841030,-270.14070736,0.00016712,2]
[329496175,1718395841044,-229.85929264,0.00016712,2]
[329496176,1718395841076,-500.0,0.00016712,2]
[329496177,1718395841108,-500.0,0.00016712,2]
[329496178,1718395841138,-500.0,0.00016712,2]
[329496179,1718395841176,-500.0,0.00016712,2]
[329496180,1718395841187,-500.0,0.00016712,2]
[329496181,1718395841214,-500.0,0.00016712,2]
[329496182,1718395841237,-500.0,0.00016712,2]
[329496183,1718395841249,-530.07,0.00016712,2]
[329496184,1718395841272,-500.0,0.00016712,2]
[329496185,1718395841291,-500.0,0.00016712,2]
[329496186,1718395841303,-560.08,0.00016712,2]
[329496187,1718395841319,-16748.48,0.00016712,2]
[329496188,1718395841332,-1634.27,0.00016712,2]
[329496189,1718395841363,-513.75,0.00016712,2]
[329496190,1718395841380,-1513.6,0.00016712,2]
[329496191,1718395841393,-1960.17,0.00016712,2]
[329496192,1718395841407,-517.88,0.00016712,2]
[329496193,1718395841425,-693.17,0.00016712,2]
[329496194,1718395841448,-500.0,0.00016712,2]
[329496195,1718395841473,-500.0,0.00016712,2]
[329496196,1718395841484,-590.28,0.00016712,2]
[329496197,1718395841496,-500.0,0.00016712,2]
[329496198,1718395841520,-5539.66,0.00016712,2]
[329496199,1718395841544,-500.0,0.00016712,2]
[329496200,1718395841556,-817.46,0.00016712,2]
[329496201,1718395841567,-2482.61,0.00016712,2]
[329496202,1718395841577,-788.38,0.00016712,2]
[329496203,1718395841589,-557.52,0.00016712,2]
[329496204,1718395841612,-500.0,0.00016712,2]
[329496205,1718395841645,-939.78,0.00016712,2]
[329496206,1718395841657,-500.0,0.00016712,2]
[329496207,1718395841691,-500.0,0.00016712,2]
[329496208,1718395841717,-500.0,0.00016712,2]
[329496209,1718395841729,-931.49,0.00016712,2]
[329496210,1718395841752,-4145.0,0.00016712,2]
[329496211,1718395841763,-500.0,0.00016712,2]
[329496212,1718395841786,-322.29175852,0.00016712,2]
[329496213,1718395841799,-1524.26,0.00016712,2]
[329496214,1718395841810,-1979.94435953,0.00016712,2]
[329496215,1718395841848,-1220.0,0.00016712,2]
[329496216,1718395841868,-3449.80564047,0.00016712,2]
[329496217,1718395841878,-500.0,0.00016712,2]
[329496218,1718395841916,-500.0,0.00016985,2]
[329496219,1718395841949,-500.0,0.00016985,2]
[329496220,1718395841971,-500.0,0.00016986,2]
[329496221,1718395842014,-500.0,0.00016986,2]
[329496222,1718395842051,-500.0,0.00016986,2]
[329496223,1718395842066,-500.0,0.00016986,2]
[329496224,1718395842076,-288.43274332,0.00016986,2]
[329496505,1718395848155,-36.06016833,0.00016986,2]
[329496509,1718395848166,-513.79,0.00016986,2]
[329496512,1718395848176,-500.0,0.00016986,2]
[329496516,1718395848189,-500.0,0.00016986,2]
[329496520,1718395848213,-500.0,0.00016986,2]
[329496522,1718395848225,-500.0,0.00016986,2]
[329496525,1718395848248,-500.0,0.00016986,2]
[329496529,1718395848273,-500.0,0.00016986,2]
[329496531,1718395848301,-500.0,0.00016986,2]
[329496534,1718395848320,-530.07,0.00016986,2]
[329496538,1718395848334,-500.0,0.00016986,2]
[329496542,1718395848373,-560.08,0.00016986,2]
[329496545,1718395848401,-16748.48,0.00016986,2]
[329496549,1718395848441,-1634.27,0.00016986,2]
[329496551,1718395848467,-513.75,0.00016986,2]
[329496554,1718395848479,-1513.6,0.00016986,2]
[329496557,1718395848491,-1960.17,0.00016986,2]
[329496560,1718395848503,-517.88,0.00016986,2]
[329496562,1718395848514,-693.17,0.00016986,2]
[329496565,1718395848529,-500.0,0.00016986,2]
[329496568,1718395848540,-500.0,0.00016986,2]
[329496569,1718395848552,-500.0,0.00016986,2]
[329496573,1718395848577,-5539.66,0.00016986,2]
[329496576,1718395848589,-220.74,0.00016986,2]
[329496578,1718395848686,-817.46,0.00016986,2]
[329496582,1718395848716,-2482.61,0.00016986,2]
[329496584,1718395848730,-557.52,0.00016986,2]
[329496586,1718395848741,-788.38,0.00016986,2]
[329496589,1718395848763,-500.0,0.00016986,2]
[329496592,1718395848776,-939.78,0.00016986,2]
[329496596,1718395848795,-500.0,0.00016986,2]
[329496599,1718395848812,-931.49,0.00016986,2]
[329496601,1718395848824,-4145.0,0.00016986,2]
[329496605,1718395848849,-500.0,0.00016986,2]
[329496608,1718395848884,-1524.26,0.00016986,2]
[329496611,1718395848900,-4252.10305296,0.00016986,2]
[329496615,1718395848927,-2397.64694704,0.00016986,2]
[329496618,1718395848964,-500.0,0.00016986,2]
[329496620,1718395848978,-1000.0,0.00017,4]
[329496624,1718395849000,-500.0,0.00017259,2]
[329496627,1718395849011,-2363.14651096,0.0001726,15]
[329496631,1718395849029,-1141.27407358,0.0001726,15]
[329496634,1718395849050,-500.0,0.0001726,2]
[329496636,1718395849063,-500.0,0.0001726,2]
[329496640,1718395849082,-513.79,0.0001726,2]
[329496643,1718395849110,-500.0,0.0001726,2]
[329496646,1718395849142,-500.0,0.0001726,2]
[329496648,1718395849154,-500.0,0.0001726,2]
[329496649,1718395849180,-251.94148018,0.0001726,2]
[329496651,1718395849205,-500.0,0.0001726,2]
[329496657,1718395849356,-519.06,0.0001726,2]
[329496659,1718395849370,-500.0,0.0001726,2]
[329496661,1718395849396,-530.07,0.0001726,2]
[329496663,1718395849412,-610.49579698,0.0001726,2]